bitfinex-derivatives/quotes_BTCF0:USTF0_20251030
["timestamp","ask_amount","ask_price","bid_price","bid_amount"]
[1761819571828,0.64185868,110070.0,110060.0,0.42018]
[1761819572532,0.30669868,110070.0,110060.0,0.5359367]
[1761819572728,0.48185868,110070.0,110060.0,0.5359367]
[1761819572926,0.48185868,110070.0,110060.0,0.44508]
[1761819573835,0.48185868,110070.0,110060.0,0.5359367]
[1761819575334,0.16669868,110070.0,110060.0,0.5359367]
[1761819575538,0.48181868,110070.0,110060.0,0.5359367]
[1761819575830,0.16669868,110070.0,110060.0,0.5359367]
[1761819576236,0.48181868,110070.0,110060.0,0.5359367]
[1761819576429,0.00922335,110080.0,110070.0,0.05666]
[1761819576635,0.69251736,110080.0,110070.0,0.41746]
[1761819576833,0.69251736,110080.0,110070.0,0.42018]
[1761819577237,0.66251736,110080.0,110070.0,0.42018]
[1761819577430,0.33512,110080.0,110070.0,0.42018]
[1761819577631,0.66251736,110080.0,110070.0,0.42018]
[1761819578031,0.66551736,110080.0,110070.0,0.42018]
[1761819578535,0.33039736,110080.0,110070.0,0.5359285]
[1761819578739,0.64547736,110080.0,110070.0,0.5359285]
[1761819578940,0.52449868,110100.0,110090.0,0.05666]
[1761819579127,1.25327736,110100.0,110090.0,0.08428]
[1761819579940,1.26228976,110100.0,110090.0,0.08428]
[1761819580842,1.42598844,110100.0,110090.0,0.03755]
[1761819581043,1.42598844,110100.0,110090.0,0.05955]
[1761819581445,1.42598844,110100.0,110090.0,0.08156]
[1761819582236,1.42598844,110100.0,110090.0,0.05955]
[1761819582436,1.42598844,110100.0,110090.0,0.08281]
[1761819588545,0.12,110100.0,110090.0,0.44633]
[1761819588749,0.70239736,110100.0,110090.0,0.44633]
[1761819588937,0.68239736,110100.0,110090.0,0.44633]
[1761819589143,0.70239736,110100.0,110090.0,0.44633]
[1761819590047,0.64239736,110100.0,110090.0,0.44633]
[1761819590458,0.47869868,110100.0,110090.0,0.44633]
[1761819590647,0.64239736,110100.0,110090.0,0.44633]
[1761819591451,0.52449868,110120.0,110110.0,0.05925]
[1761819591649,1.30945868,110120.0,110110.0,0.05925]
[1761819591951,0.16,110120.0,110110.0,0.44767]
[1761819592255,0.37496,110120.0,110110.0,0.08687]
[1761819592658,0.70235736,110120.0,110110.0,0.08687]
[1761819593050,0.86605604,110120.0,110110.0,0.08415]
[1761819593254,0.86605604,110120.0,110110.0,0.0249]
[1761819593255,1.50607034,110120.0,110110.0,0.0249]
[1761819593456,1.55607034,110120.0,110110.0,0.0259]
[1761819595860,1.39237166,110120.0,110110.0,0.08787]
[1761819596358,1.07741166,110120.0,110110.0,0.08787]
[1761819596663,1.65233166,110120.0,110110.0,0.08787]
[1761819597957,1.81603034,110120.0,110110.0,0.0259]
[1761819598156,1.71603034,110120.0,110110.0,0.0259]
[1761819599462,1.38842315,110120.0,110110.0,0.0259]
[1761819604168,1.48842315,110120.0,110110.0,0.0259]
[1761819604466,2.08842315,110120.0,110110.0,0.0259]
[1761819606871,2.08842315,110120.0,110110.0,0.04837]
[1761819607670,2.44922315,110120.0,110110.0,0.04837]
[1761819607965,0.35,110120.0,110110.0,0.08515]
[1761819608155,0.56428885,110120.0,110110.0,0.08787]
[1761819608355,0.51836885,110120.0,110110.0,0.08787]
[1761819610169,0.02,110120.0,110110.0,0.08787]
[1761819610470,0.49836885,110120.0,110110.0,0.08787]
[1761819611373,0.53087784,110120.0,110110.0,0.08787]
[1761819611970,0.06501799,110150.0,110120.0,0.05925]
[1761819612274,0.346,110160.0,110150.0,0.05757]
[1761819612460,0.416,110160.0,110150.0,0.08247]
[1761819612657,0.57948885,110160.0,110150.0,0.08247]
[1761819613258,0.60948885,110160.0,110150.0,0.08247]
[1761819613464,0.60948885,110160.0,110150.0,0.08447]
[1761819613663,0.57948885,110160.0,110150.0,0.08447]
[1761819613967,0.58851203,110160.0,110150.0,0.08447]
[1761819614164,1.11280088,110160.0,110150.0,0.07051]
[1761819614366,1.19280088,110160.0,110150.0,0.0269]
[1761819614572,1.64552088,110160.0,110150.0,0.0269]
[1761819614763,1.8737777,110160.0,110150.0,0.0269]
[1761819616569,1.88292706,110160.0,110150.0,0.0269]
[1761819617163,1.48328706,110160.0,110150.0,0.08289]
[1761819617364,1.91328706,110160.0,110150.0,0.0269]
[1761819617565,1.91328706,110160.0,110150.0,0.04886]
[1761819617864,1.91328706,110160.0,110150.0,0.0269]
[1761819618573,1.73328706,110160.0,110150.0,0.0269]
[1761819618762,1.69328706,110160.0,110150.0,0.0269]
[1761819620979,0.76106936,110160.0,110150.0,0.08289]
[1761819621272,1.34052885,110160.0,110150.0,0.08289]
[1761819622075,1.09052885,110160.0,110150.0,0.08289]
[1761819622281,0.77540885,110160.0,110150.0,0.08289]
[1761819622482,1.09048885,110160.0,110150.0,0.08289]
[1761819624083,0.927,110160.0,110150.0,0.08289]
[1761819624278,0.77540885,110160.0,110150.0,0.08289]
[1761819624480,1.09040885,110160.0,110150.0,0.08289]
[1761819625571,0.92692,110160.0,110150.0,0.08289]
[1761819625771,1.06040885,110160.0,110150.0,0.08289]
[1761819625980,1.06036885,110160.0,110150.0,0.08289]
[1761819626180,0.96036885,110160.0,110150.0,0.08289]
[1761819627274,1.09036885,110160.0,110150.0,0.08289]
[1761819627585,0.03112,110120.0,110110.0,0.05599]
[1761819627786,0.03112,110110.0,110100.0,0.05599]
[1761819628081,0.62540885,110110.0,110100.0,0.05599]
[1761819628677,0.46192,110110.0,110100.0,0.05599]
[1761819628882,0.62340885,110110.0,110100.0,0.05599]
[1761819629081,0.72340885,110110.0,110100.0,0.05799]
[1761819629282,0.90250267,110110.0,110100.0,0.05799]
[1761819631177,0.52912872,110110.0,110100.0,0.05799]
[1761819631387,0.79448872,110110.0,110100.0,0.05799]
[1761819631574,1.13707139,110110.0,110100.0,0.05799]
[1761819631774,0.02712,110070.0,110060.0,0.05599]
[1761819632076,0.01356,110060.0,110050.0,0.01293]
[1761819632379,0.11712,110060.0,110050.0,0.05599]
[1761819632680,0.45970267,110060.0,110050.0,0.05599]
[1761819632987,0.02512,110050.0,110040.0,0.05599]
[1761819633176,0.79478267,110050.0,110040.0,0.05599]
[1761819633477,1.15558267,110050.0,110040.0,0.05599]
[1761819634279,1.14758267,110050.0,110040.0,0.05599]
[1761819634886,1.14558267,110050.0,110040.0,0.05699]
[1761819635674,1.14658267,110050.0,110040.0,0.05699]
[1761819635882,1.24658267,110050.0,110040.0,0.05699]
[1761819638186,1.14658267,110050.0,110040.0,0.05699]
[1761819640383,0.82950267,110050.0,110040.0,0.05699]
[1761819640585,0.31952,110050.0,110040.0,1.01779]
[1761819640778,0.001,110050.0,110040.0,0.42051]
[1761819640985,0.31796,110050.0,110040.0,0.42051]
[1761819641181,0.31796,110050.0,110040.0,0.41779]
[1761819641487,0.31796,110050.0,110040.0,0.42051]
[1761819641686,0.31696,110050.0,110040.0,0.42051]
[1761819641872,0.31896,110050.0,110040.0,0.41951]
[1761819642777,0.32208,110050.0,110040.0,0.41951]
[1761819642986,0.32208,110050.0,110040.0,0.41679]
[1761819645688,0.32208,110050.0,110040.0,0.05599]
[1761819645899,0.32208,110050.0,110040.0,1.01679]
[1761819646585,0.32052,110050.0,110040.0,1.01951]
[1761819646885,0.31876,110050.0,110040.0,0.41951]
[1761819648186,0.31876,110050.0,110040.0,0.5103828]
[1761819648388,0.31876,110050.0,110040.0,0.5196232]
[1761819648591,0.00312,110070.0,110060.0,0.01381]
[1761819648887,0.00312,110080.0,110070.0,0.1484083]
[1761819649081,0.31984,110080.0,110070.0,0.5092083]
[1761819649788,0.31984,110080.0,110070.0,0.41836]
[1761819651488,0.32384,110080.0,110070.0,0.41836]
[1761819651877,0.71262579,110100.0,110090.0,0.02138]
[1761819652084,1.38234579,110100.0,110090.0,0.05756]
[1761819652287,1.38238579,110100.0,110090.0,0.05756]
[1761819652692,1.03980312,110100.0,110090.0,0.05756]
[1761819652889,1.38238579,110100.0,110090.0,0.05756]
[1761819653891,1.38438579,110100.0,110090.0,0.05756]
[1761819654091,1.38838579,110100.0,110090.0,0.05756]
[1761819659404,1.25019975,110100.0,110090.0,0.05756]
[1761819660008,0.5368,110100.0,110090.0,0.05756]
[1761819660200,0.34544,110100.0,110090.0,0.41836]
[1761819660607,0.34244,110100.0,110090.0,0.41836]
[1761819661310,0.34144,110100.0,110090.0,0.41836]
[1761819661803,0.34044,110100.0,110090.0,0.41836]
[1761819662005,0.54483663,110100.0,110090.0,0.41836]
[1761819662307,0.34044,110100.0,110090.0,0.41836]
[1761819663498,0.34036,110100.0,110090.0,0.41836]
[1761819663698,0.02412,110100.0,110090.0,0.41836]
[1761819663898,0.34032,110100.0,110090.0,0.41836]
[1761819667707,0.34032,110100.0,110090.0,0.05756]
[1761819667908,0.34032,110100.0,110090.0,0.41836]
[1761819669107,0.57471663,110100.0,110090.0,0.05756]
[1761819669300,0.93551663,110100.0,110090.0,0.05756]
[1761819671210,0.96769329,110100.0,110090.0,0.05756]
[1761819671401,1.09032132,110100.0,110090.0,0.05756]
[1761819671602,1.09032132,110100.0,110090.0,0.03618]
[1761819671804,1.09032132,110100.0,110070.0,0.62896403]
[1761819671805,0.00312,110080.0,110070.0,0.41836]
[1761819672007,0.72063945,110080.0,110070.0,0.41836]
[1761819673013,1.21955208,110080.0,110070.0,0.05856]
[1761819673402,1.09701272,110080.0,110070.0,0.06056]
[1761819674208,1.09701272,110080.0,110070.0,0.05956]
[1761819674409,1.09701272,110080.0,110070.0,0.05756]
[1761819674612,0.99701272,110080.0,110070.0,0.05756]
[1761819674816,0.9889155,110080.0,110070.0,0.05756]
[1761819675214,0.3636302,110080.0,110070.0,0.41836]
[1761819675414,0.3636302,110080.0,110070.0,0.05756]
[1761819676014,0.5681155,110080.0,110070.0,0.05756]
[1761819679920,0.5679155,110080.0,110070.0,0.41836]
[1761819680919,0.5479155,110080.0,110070.0,0.41836]
[1761819681120,0.5679155,110080.0,110070.0,0.41836]
[1761819681916,0.5679543,110080.0,110070.0,0.41836]
[1761819684221,0.5477943,110080.0,110070.0,0.41836]
[1761819684616,0.343309,110080.0,110070.0,0.41836]
[1761819686213,0.027509,110080.0,110070.0,0.41836]
[1761819686414,0.343269,110080.0,110070.0,0.41836]
[1761819687620,0.027509,110080.0,110070.0,0.41836]
[1761819687819,0.343229,110080.0,110070.0,0.41836]
[1761819688423,0.025949,110080.0,110070.0,0.41836]
[1761819688618,0.340109,110080.0,110070.0,0.41836]
[1761819688926,0.340109,110080.0,110070.0,0.5092084]
[1761819689118,0.340109,110080.0,110070.0,0.41836]
[1761819689425,0.341669,110080.0,110070.0,0.41836]
[1761819689628,0.024389,110090.0,110080.0,0.1492701]
[1761819689924,0.31572,110090.0,110080.0,0.53453642]
[1761819690427,0.31572,110090.0,110080.0,0.53725642]
[1761819690723,0.31572,110090.0,110080.0,0.53453642]
[1761819690933,0.41763642,110110.0,110100.0,0.05843]
[1761819691114,0.024389,110110.0,110100.0,0.7145389]
[1761819691423,0.31736,110120.0,110110.0,0.05843]
[1761819691624,0.31736,110120.0,110110.0,0.41923]
[1761819691814,0.31892,110120.0,110110.0,0.41923]
[1761819692212,0.35892,110120.0,110110.0,0.05843]
[1761819692420,0.5877943,110120.0,110110.0,0.05843]
[1761819692820,0.383309,110120.0,110110.0,0.05843]
[1761819693018,0.6177943,110120.0,110110.0,0.05843]
[1761819694326,0.6187943,110120.0,110110.0,0.05843]
[1761819694528,0.9823143,110120.0,110110.0,0.05843]
[1761819694727,0.00312,110110.0,110100.0,0.05843]
[1761819695028,0.2876053,110110.0,110100.0,0.05843]
[1761819695419,0.24660011,110110.0,110100.0,0.05843]
[1761819695728,0.24660011,110110.0,110100.0,0.41923]
[1761819696227,0.19660011,110110.0,110100.0,0.41923]
[1761819696828,0.16660011,110110.0,110100.0,0.41923]
[1761819698331,0.16760011,110110.0,110100.0,0.41923]
[1761819698831,0.48012011,110110.0,110100.0,0.67353381]
[1761819699424,0.31664,110110.0,110100.0,0.67353381]
[1761819699630,0.001,110110.0,110100.0,0.67353381]
[1761819699827,0.31656,110110.0,110100.0,0.58271011]
[1761819700130,0.48316011,110110.0,110100.0,0.41923]
[1761819701132,0.48216011,110110.0,110100.0,0.41923]
[1761819701827,0.48316011,110110.0,110100.0,0.41923]
[1761819702023,0.48160011,110110.0,110100.0,0.5100538]
[1761819702223,0.48060011,110110.0,110100.0,0.5100538]
[1761819703335,0.48216011,110110.0,110100.0,0.5100538]
[1761819703738,0.47904011,110110.0,110100.0,0.5100538]
[1761819705030,0.48060011,110110.0,110100.0,0.5100538]
[1761819705634,0.48060011,110110.0,110100.0,0.41923]
[1761819705843,0.48216011,110110.0,110100.0,0.5100538]
[1761819707141,0.47904011,110110.0,110100.0,0.5100538]
[1761819707339,0.16348011,110110.0,110100.0,0.67353391]
[1761819707535,0.18786911,110120.0,110100.0,0.67353391]
[1761819707536,0.18942911,110120.0,110110.0,0.05645]
[1761819707741,0.68982922,110120.0,110110.0,0.05645]
[1761819707941,0.66982922,110120.0,110110.0,0.05645]
[1761819708241,0.68982922,110120.0,110110.0,0.05645]
[1761819709045,0.69082922,110120.0,110110.0,0.05645]
[1761819709434,0.35546922,110120.0,110110.0,0.05645]
[1761819709739,0.67082922,110120.0,110110.0,0.05645]
[1761819710128,0.343869,110120.0,110110.0,0.05645]
[1761819710332,0.72082922,110120.0,110110.0,0.05645]
[1761819710536,0.67082922,110120.0,110110.0,0.05645]
[1761819710729,0.69082922,110120.0,110110.0,0.05645]
[1761819711342,0.69074922,110120.0,110110.0,0.05645]
[1761819712034,0.69074922,110120.0,110110.0,0.41725]
[1761819712035,0.37546922,110120.0,110110.0,0.41725]
[1761819712235,0.69070922,110120.0,110110.0,0.5080655]
[1761819712435,0.19198911,110120.0,110110.0,0.5080655]
[1761819712637,0.67070922,110120.0,110110.0,0.5080655]
[1761819714160,0.67070922,110120.0,110110.0,0.41725]
[1761819714655,0.64632022,110120.0,110110.0,0.41725]
[1761819714853,0.64632022,110120.0,110110.0,0.5080655]
[1761819715257,0.48284011,110120.0,110110.0,0.5080655]
[1761819716149,0.48284011,110120.0,110110.0,0.67426561]
[1761819716150,0.001,110120.0,110110.0,0.67426561]
[1761819716351,0.001,110120.0,110110.0,0.69601193]
[1761819716953,0.16448011,110120.0,110110.0,0.69601193]
[1761819717359,0.16760011,110120.0,110110.0,0.69601193]
[1761819717556,0.16760011,110120.0,110110.0,0.60519643]
[1761819717859,0.66636022,110120.0,110110.0,0.44171632]
[1761819718066,0.64636022,110120.0,110110.0,0.41725]
[1761819718263,0.66636022,110120.0,110110.0,0.44171632]
[1761819718563,0.64636022,110120.0,110110.0,0.44171632]
[1761819719356,0.67074922,110120.0,110110.0,0.44171632]
[1761819720466,0.67074922,110120.0,110110.0,0.53253182]
[1761819721059,0.67074922,110120.0,110110.0,0.44171632]
[1761819721255,0.50721952,110120.0,110110.0,0.44171632]
[1761819721861,0.52721952,110120.0,110110.0,0.44171632]
[1761819722065,0.50721952,110120.0,110110.0,0.44171632]
[1761819722257,0.52721952,110120.0,110110.0,0.44171632]
[1761819723566,0.50721952,110120.0,110110.0,0.44171632]
[1761819724368,0.52721952,110120.0,110110.0,0.44171632]
[1761819724863,0.54721952,110120.0,110110.0,0.08091632]
[1761819725369,0.55527794,110120.0,110110.0,0.05645]
[1761819726473,0.39184742,110120.0,110110.0,0.05645]
[1761819726779,0.55527794,110120.0,110110.0,0.05645]
[1761819727873,0.55527794,110120.0,110100.0,0.05732]
[1761819727874,0.00312,110110.0,110100.0,0.05732]
[1761819728070,0.62995225,110110.0,110100.0,0.05732]
[1761819728267,0.62995225,110110.0,110100.0,0.0223]
[1761819728571,0.00312,110100.0,110090.0,0.08178632]
[1761819728772,0.9269561,110100.0,110090.0,0.08178632]
[1761819729970,0.9269561,110100.0,110090.0,0.08278632]
[1761819730373,0.9269561,110100.0,110090.0,0.05832]
[1761819730775,0.9269561,110100.0,110090.0,0.06032]
[1761819730963,0.9269561,110100.0,110090.0,0.08478632]
[1761819731165,0.9269561,110100.0,110090.0,0.06032]
[1761819731476,0.9269561,110100.0,110090.0,0.05732]
[1761819731675,1.09038662,110100.0,110090.0,0.05732]
[1761819732077,0.9269561,110100.0,110090.0,0.05732]
[1761819732680,0.9169561,110100.0,110090.0,0.05732]
[1761819734371,0.07756558,110100.0,110090.0,0.05732]
[1761819734562,0.36272558,110100.0,110090.0,0.05732]
[1761819734769,0.33828,110100.0,110090.0,0.44258632]
[1761819736580,0.50171052,110100.0,110090.0,0.44258632]
[1761819738483,0.33516,110100.0,110090.0,0.44258632]
[1761819738675,0.33828,110100.0,110090.0,0.44258632]
[1761819738876,0.50171052,110100.0,110090.0,0.44258632]
[1761819739384,0.33672,110100.0,110090.0,0.44258632]
[1761819739880,0.33828,110100.0,110090.0,0.44258632]
[1761819743884,0.33828,110100.0,110090.0,0.54657749]
[1761819744185,0.02,110100.0,110090.0,0.54657749]
[1761819744385,0.33516,110100.0,110090.0,0.54657749]
[1761819744984,0.33516,110100.0,110090.0,0.54929749]
[1761819745180,0.33516,110100.0,110090.0,0.54657749]
[1761819746286,0.33672,110100.0,110090.0,0.54657749]
[1761819746687,0.33672,110100.0,110090.0,0.45574549]
[1761819747189,0.5061561,110110.0,110100.0,0.05734]
[1761819747380,0.5261561,110110.0,110100.0,0.07049917]
[1761819748289,0.36272558,110110.0,110100.0,0.16132297]
[1761819748490,0.36272558,110110.0,110100.0,0.07049917]
[1761819749481,0.36372558,110110.0,110100.0,0.07049917]
[1761819750189,0.5271561,110110.0,110100.0,0.07049917]
[1761819750492,0.36372558,110110.0,110100.0,0.07049917]
[1761819750690,0.34372558,110110.0,110100.0,0.16132297]
[1761819750888,0.001,110110.0,110100.0,0.71001981]
[1761819751088,0.001,110110.0,110100.0,0.71819625]
[1761819751689,0.001,110110.0,110100.0,0.72091625]
[1761819752295,0.001,110110.0,110100.0,0.55748573]
[1761819752495,0.001,110110.0,110100.0,0.55476573]
[1761819752794,0.001,110110.0,110100.0,0.55748573]
[1761819754901,0.001,110110.0,110100.0,0.54932541]
[1761819755599,0.001,110110.0,110100.0,0.54660541]
[1761819755790,0.33960558,110120.0,110110.0,0.02146]
[1761819755994,0.34272558,110120.0,110110.0,0.43129917]
[1761819756190,0.34272558,110120.0,110110.0,0.52211467]
[1761819756900,0.43198078,110120.0,110110.0,0.52211467]
[1761819757199,0.43454078,110120.0,110110.0,0.52211467]
[1761819758602,0.43450078,110120.0,110110.0,0.52211467]
[1761819759199,0.4100552,110120.0,110110.0,0.52211467]
[1761819760600,0.4300552,110120.0,110110.0,0.52211467]
[1761819760803,0.59348572,110120.0,110110.0,0.43129917]
[1761819761895,0.57348572,110120.0,110110.0,0.52211467]
[1761819762307,0.4100552,110120.0,110110.0,0.52211467]
[1761819762709,0.57348572,110120.0,110110.0,0.52211467]
[1761819763214,0.25836572,110120.0,110110.0,0.52211467]
[1761819763416,0.25836572,110120.0,110110.0,0.52211201]
[1761819763810,0.25836572,110120.0,110110.0,0.43129651]
[1761819764116,0.27836572,110120.0,110110.0,0.43129651]
[1761819764304,0.25836572,110120.0,110110.0,0.43129651]
[1761819764509,0.25836572,110120.0,110110.0,0.52211201]
[1761819764709,0.25836572,110120.0,110110.0,0.54659445]
[1761819765411,0.25836572,110120.0,110110.0,0.09497895]
[1761819765616,0.66916572,110120.0,110110.0,0.09497895]
[1761819765811,0.65916572,110120.0,110110.0,0.07049651]
[1761819766206,0.7036113,110120.0,110110.0,0.07049651]
[1761819766408,0.6536113,110120.0,110110.0,0.07049651]
[1761819766715,0.7036113,110120.0,110110.0,0.07049651]
[1761819767711,0.7036113,110120.0,110110.0,0.01315651]
[1761819768113,1.3063313,110120.0,110110.0,0.01315651]
[1761819768416,1.4036113,110120.0,110110.0,0.03598651]
[1761819768820,1.43621303,110120.0,110110.0,0.03598651]
[1761819772225,1.41176745,110120.0,110110.0,0.07138651]
[1761819772523,0.71176745,110120.0,110110.0,0.07138651]
[1761819773017,0.54833693,110120.0,110110.0,0.07138651]
[1761819773216,0.71176745,110120.0,110110.0,0.07138651]
[1761819773616,0.54833693,110120.0,110110.0,0.07138651]
[1761819773916,0.71176745,110120.0,110110.0,0.07138651]
[1761819774825,0.70357266,110120.0,110110.0,0.07138651]
[1761819777925,0.73617439,110120.0,110110.0,0.07138651]
[1761819779327,1.05125439,110120.0,110110.0,0.07138651]
[1761819781431,1.21469185,110120.0,110110.0,0.07138651]
[1761819781722,1.21469185,110120.0,110110.0,0.2348205]
[1761819781723,0.57274387,110120.0,110110.0,0.2348205]
[1761819781931,0.57344919,110120.0,110110.0,0.62010294]
[1761819782117,0.57344919,110120.0,110110.0,0.62012002]
[1761819782318,0.25836919,110120.0,110110.0,0.45668603]
[1761819782522,0.59340919,110120.0,110110.0,0.45668603]
[1761819782922,0.75684318,110120.0,110110.0,0.45668603]
[1761819783128,0.78125012,110120.0,110110.0,0.09588603]
[1761819783326,0.81125012,110120.0,110110.0,0.09588603]
[1761819786819,0.81125012,110120.0,110110.0,0.07140359]
[1761819787231,0.81125012,110120.0,110110.0,0.09588603]
[1761819788439,0.81125012,110120.0,110110.0,0.07140359]
[1761819789032,0.64781613,110120.0,110110.0,0.07140359]
[1761819789335,0.81125012,110120.0,110110.0,0.07140359]
[1761819789535,0.49621012,110120.0,110110.0,0.07140359]
[1761819789738,0.81125012,110120.0,110110.0,0.07140359]
[1761819791138,0.81125012,110120.0,110110.0,0.09588603]
[1761819792044,0.43438214,110120.0,110110.0,0.62012002]
[1761819792239,0.11934214,110120.0,110110.0,0.62012002]
[1761819792543,0.61781613,110120.0,110110.0,0.45668603]
[1761819792739,0.59781613,110120.0,110110.0,0.45668603]
[1761819792941,0.61781613,110120.0,110110.0,0.45668603]
[1761819793246,0.30277613,110120.0,110110.0,0.45668603]
[1761819793442,0.59777613,110120.0,110110.0,0.45668603]
[1761819793846,0.61777613,110120.0,110110.0,0.45668603]
[1761819794248,0.78121012,110120.0,110110.0,0.45668603]
[1761819795448,0.46621012,110120.0,110110.0,0.45668603]
[1761819795648,0.78121012,110120.0,110110.0,0.45668603]
[1761819797254,0.83121012,110120.0,110110.0,0.45668603]
[1761819798145,0.78121012,110120.0,110110.0,0.45668603]
[1761819802355,1.17201012,110120.0,110110.0,0.01317359]
[1761819802560,1.20514214,110120.0,110110.0,0.09652473]
[1761819802750,1.20201012,110120.0,110110.0,0.09652473]
[1761819803056,1.23464996,110120.0,110110.0,0.07201359]
[1761819803256,1.20464996,110120.0,110110.0,0.07201359]
[1761819803470,1.17204823,110120.0,110110.0,0.09652473]
[1761819803755,1.17204823,110120.0,110110.0,0.08335114]
[1761819804652,1.14760318,110120.0,110110.0,0.08335114]
[1761819804850,1.18020491,110120.0,110110.0,0.05884]
[1761819814764,1.17205315,110120.0,110110.0,0.08335114]
[1761819815065,1.14760318,110120.0,110110.0,0.08335114]
[1761819817370,1.18020491,110120.0,110110.0,0.05884]
[1761819818272,1.15020491,110120.0,110110.0,0.05884]
[1761819818485,1.36020491,110120.0,110110.0,0.05884]
[1761819819975,1.32760318,110120.0,110110.0,0.08335114]
[1761819820876,1.14760318,110120.0,110110.0,0.08335114]
[1761819821471,0.85333693,110120.0,110110.0,0.05884]
[1761819821671,1.18020491,110120.0,110110.0,0.05884]
[1761819822170,0.85333693,110120.0,110110.0,0.05884]
[1761819822377,0.80325693,110120.0,110110.0,0.05884]
[1761819822577,1.01669092,110120.0,110110.0,0.05884]
[1761819822876,1.18012491,110120.0,110110.0,0.05884]
[1761819823072,0.85325693,110120.0,110110.0,0.05884]
[1761819823272,0.53280261,110120.0,110110.0,0.05884]
[1761819823578,0.97855487,110120.0,110110.0,0.0965148]
[1761819823873,0.02546568,110120.0,110110.0,0.25994879]
[1761819824173,0.02546568,110120.0,110110.0,0.72241661]
[1761819824174,0.001,110120.0,110110.0,0.72241661]
[1761819825371,0.0918081,110120.0,110110.0,0.46816642]
[1761819825572,0.0918081,110120.0,110110.0,0.62888041]
[1761819825780,0.001,110120.0,110110.0,0.72241681]
[1761819826773,0.11526968,110130.0,110110.0,0.72241681]
[1761819826981,0.47606308,110140.0,110130.0,0.05828]
[1761819827182,0.11838308,110140.0,110130.0,0.62017491]
[1761819827481,0.0907974,110140.0,110130.0,0.62017491]
[1761819827680,0.0907974,110140.0,110130.0,1.05674092]
[1761819827878,0.0907974,110140.0,110130.0,1.22017491]
[1761819828272,0.0907974,110140.0,110130.0,1.22931859]
[1761819828680,0.0927974,110140.0,110130.0,1.0658846]
[1761819828878,0.0937974,110140.0,110130.0,1.0658846]
[1761819829074,0.0937974,110140.0,110130.0,1.22931859]
[1761819831485,0.003,110140.0,110130.0,1.1566845]
[1761819831684,0.0937916,110140.0,110130.0,1.32011849]
[1761819832286,0.0937916,110140.0,110130.0,1.32008825]
[1761819832489,0.0937916,110140.0,110130.0,1.06585436]
[1761819832680,0.0937916,110140.0,110130.0,1.22928835]
[1761819832878,0.0937916,110140.0,110130.0,1.22928825]
[1761819833078,0.0937916,110140.0,110130.0,1.32008815]
[1761819834186,0.003,110140.0,110130.0,0.72008815]
[1761819834490,0.003,110140.0,110130.0,0.72280815]
[1761819834688,0.003,110140.0,110130.0,0.69831089]
[1761819835388,0.0937916,110140.0,110130.0,0.69831089]
[1761819835878,0.0937916,110140.0,110130.0,0.60479099]
[1761819836282,0.0937916,110140.0,110130.0,0.441357]
[1761819836689,0.0937916,110140.0,110130.0,0.60479099]
[1761819837194,0.0937916,110140.0,110130.0,0.69559089]
[1761819838182,0.0953516,110140.0,110130.0,0.60479099]
[1761819838378,0.47377958,110140.0,110130.0,0.07141332]
[1761819838594,0.62514559,110140.0,110130.0,0.07141332]
[1761819838893,0.78857958,110140.0,110130.0,0.07141332]
[1761819839084,0.59514559,110140.0,110130.0,0.2437925]
[1761819839280,0.62114559,110140.0,110130.0,0.07141332]
[1761819839493,1.16937958,110140.0,110130.0,0.07141332]
[1761819839678,1.19656526,110140.0,110130.0,0.07141332]
[1761819839884,0.0939199,110130.0,110120.0,0.05828]
[1761819840082,0.68815389,110130.0,110120.0,0.05828]
[1761819841081,1.14158788,110130.0,110110.0,0.0138]
[1761819841281,1.09635608,110120.0,110110.0,0.05919]
[1761819841594,1.17635608,110120.0,110110.0,0.05919]
[1761819843088,0.98292209,110120.0,110110.0,0.05919]
[1761819843289,0.8194881,110120.0,110110.0,0.05919]
[1761819844698,0.98290369,110120.0,110110.0,0.05919]
[1761819846598,0.11682078,110140.0,110130.0,0.05828]
[1761819846792,0.0939151,110140.0,110130.0,0.31249529]
[1761819847091,0.4071151,110140.0,110130.0,0.67329529]
[1761819847288,0.03260173,110170.0,110160.0,0.05828]
[1761819847599,0.13933407,110180.0,110170.0,0.05828]
[1761819847600,0.11828905,110180.0,110170.0,0.05828]
[1761819847780,0.69250464,110180.0,110170.0,1.51289]
[1761819847983,0.53572543,110180.0,110170.0,1.51289]
[1761819848195,0.4796737,110180.0,110170.0,1.51289]
[1761819848786,0.4715637,110180.0,110170.0,1.51289]
[1761819849090,0.1485512,110200.0,110190.0,0.1490304]
[1761819849091,0.35395173,110200.0,110190.0,0.1490304]
[1761819849287,0.3479,110200.0,110190.0,0.1490304]
[1761819849797,0.7994422,110200.0,110190.0,0.05828]
[1761819850390,0.8294422,110200.0,110190.0,0.03523]
[1761819850594,0.8294422,110200.0,110180.0,0.01289]
[1761819850595,0.1038504,110190.0,110180.0,0.05828]
[1761819850899,0.1238504,110190.0,110180.0,0.05828]
[1761819851790,0.4846504,110190.0,110180.0,0.07152324]
[1761819851991,0.0937427,110200.0,110190.0,0.05828]
[1761819852304,0.33652,110200.0,110190.0,0.68648973]
[1761819852488,0.34307,110200.0,110190.0,0.68648973]
[1761819852800,0.4328127,110200.0,110190.0,0.68648973]
[1761819852983,0.1172927,110200.0,110190.0,0.68648973]
[1761819853289,0.4327727,110200.0,110190.0,0.68648973]
[1761819854288,0.4515263,110220.0,110210.0,0.05942]
[1761819854289,0.3608,110220.0,110210.0,0.05942]
[1761819854486,0.0907263,110230.0,110220.0,0.05852]
[1761819854687,0.1038148,110240.0,110230.0,0.05868]
[1761819854893,0.4396948,110240.0,110230.0,0.23533883]
[1761819855087,0.4396948,110240.0,110230.0,0.07192324]
[1761819855493,0.1038148,110240.0,110230.0,0.07192324]
[1761819855696,0.4396948,110240.0,110230.0,0.07192324]
[1761819855891,0.4416948,110240.0,110230.0,0.07192324]
[1761819856100,0.8054948,110240.0,110230.0,0.04949324]
[1761819856297,1.0255748,110240.0,110230.0,0.04949324]
[1761819856496,1.0355748,110240.0,110230.0,0.04949324]
[1761819857695,0.1038265,110220.0,110210.0,0.05785]
[1761819857897,0.1038347,110210.0,110200.0,0.05785]
[1761819858096,0.5146347,110210.0,110200.0,0.05785]
[1761819859495,0.5146347,110210.0,110200.0,0.03542]
[1761819859697,0.7673547,110210.0,110200.0,0.001]
[1761819859899,0.7646347,110210.0,110200.0,0.001]
[1761819860093,1.3646347,110210.0,110200.0,0.001]